fUST/lending_fUST_20250212
["ID","MTS","AMOUNT","RATE_DAILY","PERIOD"]
[352800038,1739325042561,-609.79,0.00014105,2]
[352800039,1739325042572,-500.0,0.00014105,2]
[352800040,1739325042582,-500.0,0.00014105,2]
[352800041,1739325042593,-500.0,0.00014105,2]
[352800042,1739325042604,-500.0,0.00014105,2]
[352800043,1739325042616,-500.0,0.00014105,2]
[352800044,1739325042627,-817.19,0.00014105,2]
[352800045,1739325042638,-500.0,0.00014105,2]
[352800046,1739325042649,-500.0,0.00014105,2]
[352800047,1739325042659,-500.0,0.00014105,2]
[352800049,1739325042670,-504.10535091,0.00014106,2]
[352800050,1739325042681,-505.34928355,0.00014106,2]
[352800052,1739325042691,-500.0,0.00014106,2]
[352800053,1739325042702,-500.0,0.00014106,2]
[352800054,1739325042713,-522.7426382,0.00014106,2]
[352800055,1739325042724,-500.0,0.00014106,2]
[352800056,1739325042734,-151.0,0.00014106,2]
[352800057,1739325042745,-185.18689,0.00014106,2]
[352800058,1739325042756,-185.18689,0.00014106,2]
[352800059,1739325042767,-565.48,0.00014106,2]
[352800060,1739325042777,-7088.13,0.00014106,2]
[352800061,1739325042787,-195.24047022,0.00014106,2]
[352800062,1739325042798,-500.0,0.00014106,2]
[352800064,1739325042809,-334.95,0.00014106,2]
[352800066,1739325042820,-334.95,0.00014106,2]
[352800068,1739325042831,-500.0,0.00014106,2]
[352800069,1739325042842,-151.0,0.00014106,2]
[352800070,1739325042852,-2049.61,0.00014106,2]
[352800072,1739325042863,-151.0,0.00014106,2]
[352800073,1739325042873,-500.0,0.00014106,2]
[352800074,1739325042884,-500.0,0.00014106,2]
[352800075,1739325042896,-504.3205174,0.00014107,2]
[352800076,1739325042907,-500.0,0.00014107,2]
[352800077,1739325042918,-151.0,0.00014107,2]
[352800078,1739325042929,-1000.0,0.00014107,2]
[352800079,1739325042940,-500.0,0.00014107,2]
[352800080,1739325042951,-593.87470391,0.00014107,2]
[352800081,1739325042963,-414.59453275,0.00014108,14]
[352800082,1739325042973,-10000.0,0.000142,2]
[352800083,1739325042983,-164.367206,0.000142,2]
[352800084,1739325042992,-334.95,0.000142,2]
[352800085,1739325043118,-334.95,0.000142,2]
[352800086,1739325043128,-151.0,0.000142,2]
[352800087,1739325043137,-151.0,0.000142,2]
[352800088,1739325043147,-500.0,0.00014241,2]
[352800089,1739325043156,-500.0,0.00014242,2]
[352800090,1739325043165,-640.54,0.00014242,2]
[352800091,1739325043175,-500.0,0.00014242,2]
[352800092,1739325043183,-500.0,0.00014242,2]
[352800093,1739325043192,-500.0,0.00014242,2]
[352800094,1739325043201,-500.0,0.00014242,2]
[352800095,1739325043212,-500.0,0.00014242,2]
[352800096,1739325043222,-659.23,0.00014242,2]
[352800097,1739325043231,-500.0,0.00014242,2]
[352800098,1739325043240,-500.0,0.00014242,2]
[352800099,1739325043249,-609.79,0.00014242,2]
[352800100,1739325043258,-500.0,0.00014242,2]
[352800101,1739325043267,-500.0,0.00014242,2]
[352800102,1739325043276,-500.0,0.00014242,2]
[352800103,1739325043286,-500.0,0.00014242,2]
[352800104,1739325043295,-500.0,0.00014242,2]
[352800105,1739325043304,-817.19,0.00014242,2]
[352800106,1739325043313,-500.0,0.00014242,2]
[352800107,1739325043323,-500.0,0.00014242,2]
[352800108,1739325043331,-500.0,0.00014242,2]
[352800109,1739325043340,-500.0,0.00014243,2]
[352800110,1739325043349,-500.0,0.00014243,2]
[352800111,1739325043359,-500.0,0.00014243,2]
[352800112,1739325043368,-153.267395,0.00014243,2]
[352800113,1739325043377,-185.18689,0.00014243,2]
[352800114,1739325043386,-185.18689,0.00014243,2]
[352800115,1739325043395,-185.18689,0.00014243,2]
[352800116,1739325043404,-185.18689,0.00014243,2]
[352800117,1739325043413,-565.48,0.00014243,2]
[352800119,1739325043422,-7088.13,0.00014243,2]
[352800121,1739325043431,-500.0,0.00014243,2]
[352800123,1739325043440,-334.95,0.00014243,2]
[352800125,1739325043450,-334.95,0.00014243,2]
[352800126,1739325043462,-500.0,0.00014243,2]
[352800127,1739325043471,-2049.61,0.00014243,2]
[352800128,1739325043480,-500.0,0.00014243,2]
[352800129,1739325043490,-500.0,0.00014243,2]
[352800130,1739325043499,-500.0,0.00014244,2]
[352800131,1739325043508,-1000.0,0.00014244,2]
[352800132,1739325043517,-190.69551996,0.00014244,2]
[352800133,1739325043527,-151.0,0.00014244,2]
[352800134,1739325043536,-151.0,0.00014244,2]
[352800135,1739325043546,-500.0,0.00014378,2]
[352800136,1739325043555,-500.0,0.00014379,2]
[352800137,1739325043564,-640.54,0.00014379,2]
[352800138,1739325043574,-500.0,0.00014379,2]
[352800139,1739325043583,-500.0,0.00014379,2]
[352800140,1739325043592,-500.0,0.00014379,2]
[352800141,1739325043602,-500.0,0.00014379,2]
[352800142,1739325043611,-500.0,0.00014379,2]
[352800143,1739325043620,-659.23,0.00014379,2]
[352800144,1739325043630,-500.0,0.00014379,2]
[352800146,1739325043639,-500.0,0.00014379,2]
[352800147,1739325043648,-609.79,0.00014379,2]
[352800148,1739325043658,-500.0,0.00014379,2]
[352800149,1739325043673,-500.0,0.00014379,2]
[352800150,1739325043683,-500.0,0.00014379,2]
[352800151,1739325043692,-500.0,0.00014379,2]
[352800152,1739325043702,-500.0,0.00014379,2]
[352800153,1739325043712,-817.19,0.00014379,2]
[352800154,1739325043721,-500.0,0.00014379,2]
[352800155,1739325043731,-455.89626143,0.00014379,2]
[352800156,1739325043740,-500.0,0.00014379,2]
[352800157,1739325043749,-338.91807468,0.0001438,2]
[352800158,1739325043759,-500.0,0.0001438,2]
[352800159,1739325043768,-500.0,0.0001438,2]
[352800160,1739325043777,-185.18689,0.0001438,2]
[352800161,1739325043786,-185.186881,0.0001438,2]
[352800162,1739325043795,-565.48,0.0001438,2]
[352800163,1739325043805,-7088.13,0.0001438,2]
[352800164,1739325043814,-500.0,0.0001438,2]
[352800165,1739325043823,-334.95,0.0001438,2]
[352800166,1739325043832,-334.95,0.0001438,2]
[352800167,1739325043841,-500.0,0.0001438,2]
[352800168,1739325043850,-2049.61,0.0001438,2]
[352800169,1739325043859,-500.0,0.0001438,2]
[352800170,1739325043868,-500.0,0.0001438,2]
[352800171,1739325043878,-500.0,0.00014381,2]
[352800172,1739325043887,-1000.0,0.00014381,2]
[352800173,1739325043896,-151.0,0.00014381,2]
[352800174,1739325043905,-151.0,0.000144,2]
[352800175,1739325043915,-151.0,0.000145,2]
[352800176,1739325043924,-500.0,0.00014515,2]
[352800177,1739325043933,-500.0,0.00014516,2]
[352800178,1739325043942,-640.54,0.00014516,2]
[352800179,1739325043951,-500.0,0.00014516,2]
[352800180,1739325043962,-500.0,0.00014516,2]
[352800181,1739325043972,-500.0,0.00014516,2]
[352800182,1739325043981,-500.0,0.00014516,2]
[352800183,1739325043990,-500.0,0.00014516,2]
[352800184,1739325043999,-659.23,0.00014516,2]
[352800185,1739325044008,-500.0,0.00014516,2]
[352800186,1739325044018,-500.0,0.00014516,2]
[352800187,1739325044027,-609.79,0.00014516,2]
[352800188,1739325044037,-500.0,0.00014516,2]
[352800189,1739325044046,-500.0,0.00014516,2]
[352800190,1739325044055,-500.0,0.00014516,2]
[352800191,1739325044064,-500.0,0.00014516,2]
[352800192,1739325044075,-500.0,0.00014516,2]
[352800193,1739325044084,-817.19,0.00014516,2]
[352800194,1739325044093,-500.0,0.00014516,2]
[352800195,1739325044102,-500.0,0.00014516,2]
[352800196,1739325044111,-500.0,0.00014517,2]
[352800197,1739325044120,-500.0,0.00014517,2]
[352800198,1739325044129,-565.48,0.00014517,2]
[352800199,1739325044139,-7088.13,0.00014517,2]
[352800200,1739325044148,-500.0,0.00014517,2]
[352800201,1739325044157,-500.0,0.00014517,2]
[352800202,1739325044167,-2049.61,0.00014517,2]
[352800203,1739325044176,-500.0,0.00014517,2]
[352800204,1739325044185,-500.0,0.00014517,2]
[352800205,1739325044194,-296.75710932,0.00014518,2]
[352800206,1739325044203,-1000.0,0.00014518,2]
[352800207,1739325044212,-501.25242152,0.00014593,2]
[352800208,1739325044222,-575.42336901,0.00014596,2]
[352800209,1739325044230,-503.89903043,0.00014596,2]
[352800210,1739325044239,-1000.0,0.00014596,2]
[352800211,1739325044249,-151.0,0.000146,2]
[352800212,1739325044259,-300.0,0.000146,5]
[352800213,1739325044268,-151.0,0.000146,2]
[352800214,1739325044277,-151.0,0.00014617,2]
[352800215,1739325044287,-1000.0,0.00014633,2]
[352800216,1739325044296,-152.4557013,0.00014652,2]
[352800217,1739325044306,-442.81214156,0.00014652,2]
[352800218,1739325044315,-159.96849909,0.00014652,2]
[352800219,1739325044324,-500.0,0.00014652,2]
[352800220,1739325044334,-500.0,0.00014653,2]
[352800221,1739325044344,-640.54,0.00014653,2]
[352800222,1739325044353,-160.0,0.00014653,2]
[352800223,1739325044363,-500.0,0.00014653,2]
[352800224,1739325044372,-500.0,0.00014653,2]
[352800225,1739325044381,-500.0,0.00014653,2]
[352800226,1739325044391,-500.0,0.00014653,2]
[352800227,1739325044400,-500.0,0.00014653,2]
[352800228,1739325044409,-659.23,0.00014653,2]
[352800229,1739325044418,-500.0,0.00014653,2]
[352800230,1739325044427,-500.0,0.00014653,2]
[352800231,1739325044436,-609.79,0.00014653,2]
[352800232,1739325044447,-500.0,0.00014653,2]
[352800233,1739325044458,-500.0,0.00014653,2]
[352800234,1739325044468,-500.0,0.00014653,2]
[352800235,1739325044478,-500.0,0.00014653,2]
[352800236,1739325044488,-500.0,0.00014653,2]
[352800237,1739325044497,-817.19,0.00014653,2]
[352800238,1739325044507,-500.0,0.00014653,2]
[352800239,1739325044516,-500.0,0.00014653,2]
[352800240,1739325044526,-192.15566404,0.00014654,5]
[352800241,1739325044536,-425.82494178,0.00014654,2]
[352800242,1739325044545,-500.0,0.00014654,2]
[352800243,1739325044555,-565.48,0.00014654,2]
[352800244,1739325044564,-181.48457381,0.00014654,2]
[352800245,1739325044849,-1255.93,0.0001383,2]
[352800246,1739325044859,-151.0,0.00013831,2]
[352800247,1739325044870,-151.0,0.00013832,2]
[352800248,1739325044880,-151.0,0.00013833,2]
[352800249,1739325044889,-1255.93,0.00013967,2]
[352800250,1739325044899,-148.91244737,0.00013969,2]
[352800265,1739325046342,-2.08755263,0.00013969,2]
[352800266,1739325046353,-1255.93,0.00014104,2]
[352800267,1739325046363,-1255.93,0.00014241,2]
[352800268,1739325046372,-1255.93,0.00014378,2]
[352800269,1739325046383,-1255.93,0.00014515,2]
[352800270,1739325046394,-1255.93,0.00014652,2]
[352800271,1739325046404,-6906.64542619,0.00014654,2]
[352800272,1739325046414,-500.0,0.00014654,2]
[352800273,1739325046425,-162.90866529,0.00014654,2]
[352800274,1739325046434,-1507.24761382,0.00014654,2]
[352800275,1739325046447,-542.36238618,0.00014654,2]
[352800276,1739325046459,-500.0,0.00014654,2]
[352800277,1739325046470,-500.0,0.00014654,2]
[352800278,1739325046479,-1000.0,0.00014655,2]
[352800279,1739325046490,-151.0,0.000147,2]
[352800280,1739325046499,-600.0,0.0001476,2]
[352800281,1739325046509,-500.0,0.00014789,2]
[352800282,1739325046518,-932.87804167,0.00014789,2]
[352800283,1739325046531,-323.05195833,0.00014789,2]
[352800284,1739325046541,-160.0,0.0001479,2]
[352800285,1739325046551,-500.0,0.0001479,2]
[352800286,1739325046560,-640.54,0.0001479,2]
[352800287,1739325046570,-500.0,0.0001479,2]
[352800288,1739325046579,-500.0,0.0001479,2]
[352800289,1739325046588,-251.907616,0.0001479,2]
[352800290,1739325046598,-500.0,0.0001479,2]
[352800291,1739325046607,-500.0,0.0001479,2]
[352800292,1739325046617,-659.23,0.0001479,2]
[352800293,1739325046626,-273.451519,0.0001479,2]
[352800294,1739325046636,-500.0,0.0001479,2]
[352800295,1739325046645,-500.0,0.0001479,2]
[352800296,1739325046655,-609.79,0.0001479,2]
[352800297,1739325046665,-500.0,0.0001479,2]
[352800298,1739325046675,-500.0,0.0001479,2]
[352800299,1739325046684,-500.0,0.0001479,2]
[352800300,1739325046693,-500.0,0.0001479,2]
[352800301,1739325046703,-817.19,0.0001479,2]
[352800302,1739325046714,-500.0,0.0001479,2]
[352800303,1739325046723,-500.0,0.0001479,2]
[352800304,1739325046732,-500.0,0.00014791,2]
[352800305,1739325046742,-565.48,0.00014791,2]
[352800306,1739325046751,-7088.13,0.00014791,2]
[352800307,1739325046761,-500.0,0.00014791,2]
[352800308,1739325046873,-2049.61,0.00014791,2]
[352800309,1739325046883,-373.97786667,0.00014791,2]
[352800310,1739325046892,-500.0,0.00014791,2]
[352800311,1739325046902,-1000.0,0.00014792,2]
[352800312,1739325046912,-151.0,0.000148,2]
[352800313,1739325046921,-930.79,0.000148,2]
[352800314,1739325046930,-151.0,0.000148,2]
[352800315,1739325046939,-178.00374137,0.00014828,2]
[352800316,1739325046948,-151.0,0.000149,2]
[352800317,1739325046958,-151.0,0.000149,2]
[352800318,1739325046970,-151.0,0.000149,2]
[352800319,1739325046979,-500.0,0.00014926,2]
[352800320,1739325046989,-1255.93,0.00014926,2]
[352800321,1739325046998,-160.0,0.00014927,2]
[352800322,1739325047007,-500.0,0.00014927,2]
[352800323,1739325047017,-640.54,0.00014927,2]
[352800324,1739325047026,-500.0,0.00014927,2]
[352800325,1739325047035,-500.0,0.00014927,2]
[352800326,1739325047043,-500.0,0.00014927,2]
[352800327,1739325047053,-500.0,0.00014927,2]
[352800328,1739325047062,-659.23,0.00014927,2]
[352800329,1739325047071,-500.0,0.00014927,2]
[352800330,1739325047080,-500.0,0.00014927,2]
[352800331,1739325047089,-609.79,0.00014927,2]
[352800332,1739325047098,-500.0,0.00014927,2]
[352800333,1739325047108,-411.71243971,0.00014927,2]
[352800334,1739325047117,-500.0,0.00014927,2]
[352800335,1739325047126,-500.0,0.00014927,2]
[352800336,1739325047135,-817.19,0.00014927,2]
[352800337,1739325047144,-500.0,0.00014927,2]
[352800338,1739325047153,-500.0,0.00014927,2]
[352800339,1739325047162,-221.12078334,0.00014928,2]
[352800340,1739325047171,-565.48,0.00014928,2]
[352800341,1739325047180,-7088.13,0.00014928,2]
[352800342,1739325047190,-500.0,0.00014928,2]
[352800343,1739325047199,-2049.61,0.00014928,2]
[352800344,1739325047208,-500.0,0.00014928,2]
[352800345,1739325047219,-1000.0,0.00014929,2]
[352800346,1739325047228,-160.0,0.00014952,2]
[352800347,1739325047237,-160.0,0.00014952,2]
[352800348,1739325047247,-508.01572727,0.00014953,5]
[352800349,1739325047256,-5006.05462871,0.00014953,2]
[352800350,1739325047265,-5000.0,0.00014953,2]
[352800351,1739325047275,-5000.0,0.00014953,2]
[352800352,1739325047284,-5000.0,0.00014953,2]
[352800353,1739325047293,-5000.0,0.00014953,2]
[352800354,1739325047303,-5010.57279884,0.00014953,2]
[352800355,1739325047312,-1290.0,0.00014978,4]
[352800356,1739325047321,-160.0,0.00014999,2]
[352800357,1739325047331,-160.0,0.00014999,2]
[352800358,1739325047340,-200.0,0.00015,7]
[352800359,1739325047349,-200.0,0.00015,7]
[352800360,1739325047359,-200.0,0.00015,5]
[352800361,1739325047367,-200.0,0.00015,5]
[352800362,1739325047377,-200.0,0.00015,6]
[352800363,1739325047387,-200.0,0.00015,6]
[352800364,1739325047396,-200.0,0.00015,7]
[352800365,1739325047406,-503876.93043113,0.00015,2]
[352800367,1739325220805,259.0,0.000145,120]
[352800369,1739325955134,-300.0,0.000131,4]
[352800370,1739325955154,-238.02488985,0.00013592,2]
[352800371,1739325955174,-1351.84284807,0.00013598,2]
[352800372,1739325955196,-28.33927373,0.00013692,2]
[352800373,1739326031093,-500.0,0.0001339,2]
[352800374,1739326031117,-300.0,0.00013691,2]
[352800375,1739326031139,-500.0,0.00013692,2]
[352800376,1739326031162,-1849.03273082,0.00013692,2]
[352800377,1739326032086,-3553.11653048,0.00013692,2]
[352800378,1739326044093,-450.0,0.00013692,2]
[352800379,1739326049132,-475.48424154,0.00013692,2]
[352800380,1739326168099,-600.0,0.0001339,2]
[352800381,1739326168123,-1062.63649716,0.00013692,2]
[352800382,1739326168145,-135.42647246,0.00013692,2]
[352800405,1739326232602,-1076.98352754,0.00013692,2]
[352800406,1739326232612,-138.55526226,0.00013692,2]
[352800412,1739326238142,400.0,0.00010685,2]
[352802058,1739326293353,584.0,0.00016934,120]
[352802064,1739326402910,384.25207,0.0001693,120]
[352802066,1739326503144,19899.0,0.000109,2]
[352802073,1739326803116,1815.45996807,0.000109,2]
[352802077,1739327156163,-381.53348254,0.00013598,2]
[352802078,1739327230118,-300.0,0.00013694,2]
[352802079,1739327230144,-55.31165305,0.00013695,2]
[352802081,1739327253094,-1135.1708067,0.00013598,2]
[352802082,1739327253121,-447.64459665,0.00013695,2]
[352802083,1739327253151,-500.0,0.00013695,2]
[352802084,1739327253176,-500.0,0.00013695,2]
[352802085,1739327253202,-500.0,0.00013695,2]
[352802086,1739327253228,-410.46892744,0.00013695,2]
[352802087,1739327253252,-500.0,0.00013695,2]
[352802088,1739327253277,-500.0,0.00013695,2]
[352802089,1739327253300,-1158.65,0.00013695,2]
[352802090,1739327253325,-500.0,0.00013695,2]
[352802091,1739327253349,-500.0,0.00013695,2]
[352802092,1739327253374,-500.0,0.00013695,2]
[352802093,1739327253398,-500.0,0.00013695,2]
[352802094,1739327253422,-500.0,0.00013696,2]
[352802095,1739327253443,-500.0,0.00013696,2]
[352802096,1739327253468,-258.92537413,0.00013696,2]
[352802097,1739327253491,-500.0,0.00013696,2]
[352802098,1739327253513,-501.37151388,0.00013696,2]
[352802099,1739327253535,-500.0,0.00013696,2]
[352802100,1739327253564,-500.43828197,0.00013696,2]
[352802101,1739327253587,-49.84975082,0.00013696,2]
[352802111,1739327355132,-300.0,0.00013499,2]
[352802112,1739327355158,-18914.55909626,0.000135,2]
[352802113,1739327357099,-1960.0,0.000135,2]
[352802114,1739327367414,400.0,0.00010685,2]
[352802160,1739327432813,-462.228,0.000135,2]
[352802161,1739327432867,-26.77529889,0.000135,2]
[352802162,1739327432877,-300.0,0.00013694,2]
[352802163,1739327432887,-500.0,0.00013695,2]
[352802164,1739327432898,-500.0,0.00013695,2]
[352802165,1739327432907,-500.0,0.00013695,2]
[352802166,1739327432917,-500.0,0.00013695,2]
[352802167,1739327432926,-500.0,0.00013695,2]
[352802168,1739327432936,-500.0,0.00013695,2]
[352802169,1739327432946,-500.0,0.00013695,2]
[352802170,1739327432956,-500.0,0.00013695,2]
[352802171,1739327432966,-530.49890343,0.00013695,2]
[352802172,1739327432976,-500.0,0.00013695,2]
[352802173,1739327432985,-1110.37,0.00013695,2]
[352802175,1739327432996,-657.51591111,0.00013695,2]
[352802177,1739327433009,-1341.44909695,0.00013695,2]
[352802180,1739327433022,-343.55762178,0.00013695,2]
[352802182,1739327433034,-4739.81737016,0.00013695,2]
[352802184,1739327433044,-4170.09,0.00013695,2]
[352802186,1739327433057,-450.15024918,0.00013696,2]
[352802188,1739327433068,-500.0,0.00013696,2]
[352802189,1739327433079,-919.82,0.00013696,2]
[352802191,1739327433090,-500.0,0.00013696,2]
[352802192,1739327433099,-500.0,0.00013696,2]
[352802194,1739327433110,-501.04442921,0.00013696,2]
[352802195,1739327433121,-500.0,0.00013697,2]
[352802197,1739327433131,-163.85460121,0.00013697,2]
[352802198,1739327433141,-500.0,0.00013697,2]
[352802200,1739327433151,-500.0,0.00013697,2]
[352802201,1739327433162,-151.11196962,0.00013697,2]
[352802203,1739327433172,-500.0,0.00013698,2]
[352802205,1739327433183,-619.00435621,0.00013698,2]
[352802206,1739327433192,-500.0,0.00013698,2]
[352802208,1739327433204,-500.0,0.00013698,2]
[352802210,1739327433215,-256.07794585,0.00013698,2]
[352802211,1739327433225,-501.28088733,0.00013698,2]
[352802213,1739327433235,-500.0,0.00013698,2]
[352802214,1739327433247,-1000.0,0.00013698,2]
[352802215,1739327433257,-774.299192,0.00013699,2]
[352802216,1739327433267,-443.62236,0.00013699,2]
[352802217,1739327433277,-150.11436319,0.00013699,2]
[352802218,1739327433290,-993.27445588,0.00013732,2]
[352802219,1739327433301,-500.0,0.00013832,2]
[352802220,1739327433311,-500.0,0.00013832,2]
[352802221,1739327433322,-500.0,0.00013832,2]
[352802222,1739327433331,-373.99677107,0.00013832,2]
[352802231,1739327440737,-500.0,0.00013695,2]
[352802232,1739327440746,-126.00322893,0.00013832,2]
[352802233,1739327440755,-500.0,0.00013832,2]
[352802234,1739327440765,-500.0,0.00013832,2]
[352802235,1739327440774,-500.0,0.00013832,2]
[352802236,1739327440784,-500.0,0.00013832,2]
[352802237,1739327440793,-500.0,0.00013832,2]
[352802238,1739327440803,-500.0,0.00013832,2]
[352802239,1739327440814,-292.4184862,0.00013832,2]
[352802240,1739327440823,-500.0,0.00013832,2]
[352802241,1739327440833,-500.0,0.00013832,2]
[352802242,1739327440842,-1110.37,0.00013832,2]
[352802243,1739327440851,-3723.99210069,0.00013832,2]
[352802248,1739327443792,-500.0,0.00013832,2]
[352802252,1739327867778,1000.0,0.00016932,120]
[352802253,1739327868071,1000.0,0.00016932,120]
[352802254,1739327868362,1000.0,0.00016932,120]
[352802255,1739327868675,1000.0,0.00016932,120]
[352802256,1739327868970,1000.0,0.00016932,120]
[352802257,1739327869329,1000.0,0.00016932,120]
[352802258,1739328102942,1000.0,0.00014027,60]
[352802259,1739328103228,1000.0,0.00014027,60]
[352802260,1739328103535,1000.0,0.00014027,60]
[352802261,1739328104330,1000.0,0.00014027,60]
[352802262,1739328104634,1000.0,0.00014027,60]
[352802263,1739328104941,1000.0,0.00014027,60]
[352802264,1739328105231,1000.0,0.00014027,60]
[352802270,1739328437137,-150.35998969,0.00011232,4]
[352802271,1739328437158,-3791.98363352,0.00012775,2]
[352802272,1739328437314,-500.0,0.00012904,2]
[352802273,1739328437337,-500.0,0.00012932,2]
[352802274,1739328437358,-500.0,0.00012959,2]
[352802275,1739328437379,-500.0,0.00012986,2]
[352802276,1739328437400,-500.0,0.00013014,2]
[352802277,1739328437420,-500.0,0.00013041,2]
[352802278,1739328437440,-500.0,0.00013068,2]
[352802279,1739328437460,-500.0,0.00013096,2]
[352802280,1739328437482,-300.0,0.000131,4]
[352802281,1739328437502,-9.63759262,0.00013123,2]
[352802282,1739328441119,-388.4516385,0.00013123,2]
[352802283,1739328452127,-101.91076888,0.00013123,2]
[352802284,1739328452149,-500.0,0.00013151,2]
[352802285,1739328452172,-300.0,0.00013177,2]
[352802286,1739328452192,-618.80948873,0.00013178,2]
[352802287,1739328474816,400.0,0.00010685,2]
[352802288,1739328561137,-99917.62,0.000123,2]
[352802289,1739328561160,-400.2857395,0.00012804,2]
[352802290,1739328561182,-301.04778434,0.00013178,2]
[352802292,1739328574099,-80.14272693,0.00013178,2]
[352802293,1739328574120,-1000.0,0.00013205,2]
[352802294,1739328574141,-1000.0,0.00013233,2]
[352802295,1739328574162,-1000.0,0.0001326,2]
[352802296,1739328574185,-1000.0,0.00013288,2]
[352802297,1739328574207,-1000.0,0.00013315,2]
[352802298,1739328574228,-1000.0,0.00013342,2]
[352802299,1739328574250,-369.96265563,0.0001337,2]
[352802328,1739328632040,-630.03734437,0.0001337,2]
[352802329,1739328632062,-600.0,0.0001339,2]
[352802330,1739328632074,-1000.0,0.00013397,2]
[352802331,1739328632087,-300.0,0.00013423,2]
[352802332,1739328632097,-500.0,0.00013424,2]
[352802333,1739328632107,-500.0,0.00013424,2]
[352802334,1739328632117,-500.0,0.00013424,2]
[352802335,1739328632127,-500.0,0.00013424,2]
[352802336,1739328632137,-619.26,0.00013424,2]
[352802337,1739328632148,-1689.43,0.00013424,2]
[352802338,1739328632158,-1000.0,0.00013425,2]
[352802339,1739328632168,-1517.33,0.00013534,2]
[352802340,1739328632180,-500.0,0.00013561,2]
[352802341,1739328632192,-504.86427062,0.00013561,2]
[352802342,1739328632204,-500.0,0.00013561,2]
[352802343,1739328632214,-500.0,0.00013561,2]
[352802344,1739328632224,-619.26,0.00013561,2]
[352802345,1739328632234,-1689.43,0.00013561,2]
[352802346,1739328632244,-500.0,0.0001357,2]
[352802347,1739328632256,-628.18,0.0001357,2]
[352802348,1739328632267,-500.0,0.0001357,2]
[352802349,1739328632279,-500.0,0.0001357,2]
[352802350,1739328632289,-500.0,0.0001357,2]
[352802351,1739328632298,-500.0,0.0001357,2]
[352802352,1739328632308,-500.0,0.0001357,2]
[352802353,1739328632319,-500.0,0.0001357,2]
[352802354,1739328632328,-354.8797951,0.0001357,2]
[352802358,1739328637717,-500.0,0.00013424,2]
[352802359,1739328637732,-500.0,0.00013561,2]
[352802360,1739328637742,-145.1202049,0.0001357,2]
[352802361,1739328637752,-500.0,0.0001357,2]
[352802362,1739328637762,-500.0,0.0001357,2]
[352802363,1739328637772,-500.0,0.0001357,2]
[352802364,1739328637781,-500.0,0.0001357,2]
[352802365,1739328637792,-500.0,0.0001357,2]
[352802366,1739328637803,-500.0,0.0001357,2]
[352802367,1739328637813,-500.0,0.0001357,2]
[352802368,1739328637823,-500.0,0.0001357,2]
[352802369,1739328637833,-500.0,0.0001357,2]
[352802370,1739328637843,-632.21,0.0001357,2]
[352802371,1739328637853,-500.0,0.0001357,2]
[352802372,1739328637863,-6914.25,0.0001357,2]
[352802373,1739328637872,-500.0,0.0001357,2]
[352802374,1739328637882,-869.11514893,0.00013571,2]
[352802375,1739328637892,-535.80212543,0.00013648,2]